bitfinex-derivatives/quotes_SOLF0:USTF0_20250101
["timestamp","ask_amount","ask_price","bid_price","bid_amount"]
[1735702550398,7.25235953,190.66,190.64,2.6283]
[1735702550600,31.63733814,190.67,190.64,2.6283]
[1735702551402,7.25235953,190.66,190.64,2.6283]
[1735702551604,7.25235953,190.66,190.55,3.1168]
[1735702551805,8.43221984,190.64,190.56,2.6293]
[1735702551998,8.43221984,190.64,190.55,8.43221984]
[1735702552204,2.629,190.6,190.56,5.05189304]
[1735702552702,9.88135953,190.6,190.55,8.43221984]
[1735702553003,9.88135953,190.6,190.56,2.6294]
[1735702553803,2.629,190.6,190.56,2.6294]
[1735702557612,9.88105953,190.61,190.57,2.6292]
[1735702557807,2.6287,190.61,190.57,2.6292]
[1735702558009,29.00943814,190.62,190.57,2.6292]
[1735702558209,2.6289,190.6,190.57,11.06141984]
[1735702565711,7.25235953,190.63,190.59,8.43221984]
[1735702567318,13.61631345,190.65,190.59,8.43221984]
[1735702567518,2.6285,190.63,190.6,2.6288]
[1735702567720,2.6285,190.63,190.59,8.43221984]
[1735702568118,2.6285,190.63,190.59,11.06121984]
[1735702569315,2.6287,190.62,190.59,8.43221984]
[1735702570425,14.79617376,190.65,190.59,8.43221984]
[1735702570612,2.6287,190.61,190.59,8.43221984]
[1735702574519,43.8056119,190.65,190.57,8.43221984]
[1735702575122,2.6291,190.59,190.57,8.43221984]
[1735702580324,7.25235953,190.63,190.57,8.43221984]
[1735702581435,2.6288,190.61,190.58,2.6291]
[1735702582932,2.6286,190.62,190.58,2.629]
[1735702584033,2.6286,190.62,190.58,11.06121984]
[1735702586038,9.88095953,190.62,190.58,11.06121984]
[1735702586931,31.63803814,190.62,190.58,11.06121984]
[1735702587937,7.25235953,190.61,190.58,11.06121984]
[1735702588637,31.63803814,190.62,190.58,11.06121984]
[1735702589240,29.00943814,190.62,190.58,11.06121984]
[1735702589540,2.6287,190.61,190.58,11.06121984]
[1735702592342,31.63813814,190.61,190.58,11.06121984]
[1735702592542,31.63813814,190.61,190.58,8.43221984]
[1735702593443,2.6287,190.61,190.58,8.43221984]
[1735702595440,2.6289,190.6,190.58,8.43221984]
[1735702597836,2.629,190.59,190.58,8.43221984]
[1735702603937,7.25235953,190.6,190.56,8.43221984]
[1735702603938,2.6292,190.58,190.56,8.43221984]
[1735702609540,2.6293,190.57,190.56,8.43221984]
[1735702609746,15.68457937,190.6,190.5,2.94]
[1735702610044,17.17617937,190.6,190.53,8.43221984]
[1735702610248,2.6295,190.56,190.53,11.06201984]
[1735702610440,2.6295,190.56,190.54,5.05166207]
[1735702610946,2.6295,190.56,190.53,8.43221984]
[1735702611548,2.6295,190.56,190.54,5.05083414]
[1735702611840,2.6295,190.56,190.53,8.43221984]
[1735702612448,2.6295,190.56,190.53,11.06201984]
[1735702612849,2.6293,190.57,190.53,11.06201984]
[1735702613246,9.88165953,190.57,190.53,11.06201984]
[1735702614051,2.6293,190.57,190.53,11.06201984]
[1735702616252,2.6294,190.56,190.54,8.43221984]
[1735702616448,29.00943814,190.58,190.54,8.43221984]
[1735702616754,2.6293,190.57,190.54,8.43221984]
[1735702617553,2.6293,190.57,190.53,11.06201984]
[1735702619357,2.6293,190.57,190.53,2.6298]
[1735702619552,2.6293,190.57,190.54,8.43221984]
[1735702621357,2.6295,190.56,190.49,2.94]
[1735702621551,2.6295,190.56,190.53,8.43221984]
[1735702623555,11.37221984,190.56,190.35,7.8969]
[1735702623856,2.6301,190.51,190.47,11.06281984]
[1735702624057,2.6301,190.51,190.49,8.43221984]
[1735702625059,29.00943814,190.54,190.49,8.43221984]
[1735702626451,37.44165798,190.54,190.49,8.43221984]
[1735702627358,15.68457937,190.54,190.49,8.43221984]
[1735702627956,2.6301,190.51,190.49,8.43221984]
[1735702628557,2.6301,190.51,190.47,11.06281984]
[1735702629158,2.6301,190.51,190.47,2.6306]
[1735702629358,2.6301,190.51,190.47,11.06281984]
[1735702629961,2.6305,190.48,190.45,11.06311984]
[1735702631762,2.6304,190.49,190.45,11.06311984]
[1735702635766,2.94,190.51,190.45,8.43221984]
[1735702635960,20.24107937,190.54,190.47,8.43221984]
[1735702636464,2.6301,190.52,190.48,2.6305]
[1735702638360,2.94,190.55,190.49,8.43221984]
[1735702638866,40.38165798,190.56,190.49,8.43221984]
[1735702639069,2.6298,190.54,190.5,2.6301]
[1735702639362,36.1609995,190.55,190.5,11.06231984]
[1735702640569,2.6298,190.53,190.5,11.06231984]
[1735702640865,36.1609995,190.55,190.52,8.43221984]
[1735702641269,29.00943814,190.58,190.54,8.43221984]
[1735702641459,29.00943814,190.58,190.56,8.43221984]
[1735702641662,7.25235953,190.58,190.56,8.43221984]
[1735702642469,2.629,190.6,190.56,11.06161984]
[1735702644667,7.25235953,190.61,190.56,8.43221984]
[1735702644872,7.25235953,190.61,190.57,8.43221984]
[1735702645872,58.01887631,190.63,190.57,8.43221984]
[1735702645873,17.18287937,190.64,190.57,8.43221984]
[1735702646265,7.25235953,190.64,190.61,8.43221984]
[1735702646468,7.25235953,190.64,190.59,8.43221984]
[1735702646667,2.6287,190.62,190.59,8.43221984]
[1735702646869,15.68457937,190.64,190.57,11.06131984]
[1735702647171,8.43221984,190.64,190.57,11.06131984]
[1735702647373,2.6287,190.61,190.57,8.43221984]
[1735702647867,8.43221984,190.64,190.57,8.43221984]
[1735702648360,9.06411345,190.65,190.57,8.43221984]
[1735702648566,8.43221984,190.63,190.57,8.43221984]
[1735702649468,2.6288,190.61,190.57,8.43221984]
[1735702649667,8.43221984,190.63,190.57,8.43221984]
[1735702650470,2.6289,190.6,190.57,8.43221984]
[1735702650967,2.6291,190.59,190.55,8.43221984]
[1735702651369,8.43221984,190.61,190.55,8.43221984]
[1735702652770,2.6291,190.59,190.55,8.43221984]
[1735702655173,8.43221984,190.61,190.55,8.43221984]
[1735702655476,2.94,190.62,190.55,8.43221984]
[1735702655672,10.19235953,190.62,190.55,8.43221984]
[1735702655874,2.6291,190.59,190.55,11.06171984]
[1735702656174,2.6291,190.59,190.55,2.6295]
[1735702656479,8.43221984,190.61,190.54,8.43221984]
[1735702657478,2.6291,190.58,190.54,11.06191984]
[1735702658279,2.6291,190.58,190.54,2.6297]
[1735702660082,2.6291,190.58,190.54,11.06191984]
[1735702666978,2.6291,190.58,190.55,2.6295]
[1735702675085,31.63853814,190.58,190.55,2.6295]
[1735702675886,9.88145953,190.58,190.55,2.6295]
[1735702676085,9.88145953,190.58,190.56,8.43221984]
[1735702676287,7.25235953,190.58,190.56,11.06161984]
[1735702678385,7.25235953,190.58,190.56,8.43221984]
[1735702678586,9.88155953,190.58,190.56,8.43221984]
[1735702678786,9.88155953,190.58,190.54,8.43221984]
[1735702678787,7.25235953,190.58,190.54,8.43221984]
[1735702678989,19.63185558,190.58,190.47,3.0307]
[1735702679183,2.6298,190.53,190.51,8.43221984]
[1735702679383,2.6298,190.53,190.47,3.0307]
[1735702679684,2.6298,190.53,190.48,2.6305]
[1735702679885,2.6298,190.53,190.49,8.43221984]
[1735702680186,2.63,190.52,190.49,8.43221984]
[1735702681183,2.6299,190.53,190.49,11.06261984]
[1735702681688,29.00943814,190.54,190.49,8.43221984]
[1735702681888,31.63913814,190.54,190.51,8.43221984]
[1735702682388,9.88205953,190.54,190.51,8.43221984]
[1735702683090,9.88205953,190.54,190.51,11.06231984]
[1735702683287,2.6297,190.54,190.51,11.06231984]
[1735702684290,9.88205953,190.54,190.51,11.06231984]
[1735702684787,9.88205953,190.54,190.51,8.43221984]
[1735702685185,2.6297,190.54,190.51,8.43221984]
[1735702685389,2.6297,190.54,190.5,2.6302]
[1735702686594,29.00943814,190.55,190.49,8.43221984]
[1735702686794,2.6298,190.53,190.49,11.06261984]
[1735702689397,31.63903814,190.55,190.51,2.63]
[1735702689598,31.63903814,190.55,190.51,11.06221984]
[1735702690194,2.6296,190.55,190.51,11.06221984]
[1735702690599,7.25235953,190.56,190.51,8.43221984]
[1735702690898,9.88175953,190.56,190.52,2.6299]
[1735702692101,2.6294,190.56,190.52,2.6299]
[1735702692495,2.6294,190.56,190.52,11.06211984]
[1735702692892,9.88175953,190.56,190.52,11.06211984]
[1735702694900,7.25235953,190.56,190.52,11.06211984]
[1735702695102,2.6295,190.55,190.52,11.06211984]
[1735702696608,2.6295,190.55,190.52,8.43221984]
[1735702697107,31.63883814,190.56,190.52,8.43221984]
[1735702697410,29.00943814,190.56,190.54,8.43221984]
[1735702698102,7.25235953,190.56,190.54,11.06191984]
[1735702698310,7.25235953,190.56,190.54,8.43221984]
[1735702698701,7.25235953,190.56,190.52,8.43221984]
[1735702699205,2.6295,190.56,190.52,11.06211984]
[1735702699604,7.25235953,190.57,190.52,8.43221984]
[1735702699804,2.6296,190.55,190.52,8.43221984]
[1735702700306,29.00943814,190.56,190.52,8.43221984]
[1735702700608,2.6297,190.54,190.52,8.43221984]
[1735702707208,2.6297,190.54,190.51,2.6301]
[1735702709307,29.00943814,190.57,190.52,8.43221984]
[1735702709513,29.00943814,190.57,190.54,8.43221984]
[1735702709714,7.25235953,190.55,190.54,11.06181984]
[1735702710813,31.63863814,190.58,190.54,8.43221984]
[1735702711006,29.00943814,190.58,190.54,11.06181984]
[1735702711211,2.6293,190.57,190.54,11.06181984]
[1735702712512,9.88165953,190.57,190.54,11.06181984]
[1735702713108,7.25235953,190.57,190.54,11.06181984]
[1735702714419,20.16677891,190.57,190.54,11.06181984]
[1735702715512,31.63863814,190.58,190.54,11.06181984]
[1735702715912,31.63863814,190.58,190.55,2.6295]
[1735702717416,29.00943814,190.58,190.56,8.43221984]
[1735702718019,29.00943814,190.58,190.57,2.6293]
[1735702718311,29.00943814,190.58,190.56,8.43221984]
[1735702718511,29.00943814,190.6,190.56,8.43221984]
[1735702719617,2.629,190.59,190.56,2.6294]
[1735702719816,29.00943814,190.6,190.54,2.94]
[1735702719817,20.16427208,190.6,190.54,2.94]
[1735702720414,8.43221984,190.59,190.54,2.94]
[1735702720716,37.44165798,190.59,190.54,2.94]
[1735702720917,29.00943814,190.59,190.54,2.94]
[1735702721713,2.6293,190.57,190.54,5.5697]
[1735702723622,2.6294,190.56,190.54,2.94]
[1735702723821,2.6294,190.56,190.53,11.06201984]
[1735702726919,2.6293,190.57,190.54,2.6297]
[1735702728017,7.25235953,190.57,190.53,8.43221984]
[1735702728221,7.25235953,190.57,190.55,8.43221984]
[1735702729021,21.75707861,190.58,190.56,2.6294]
[1735702729022,7.25235953,190.58,190.56,2.6294]
[1735702729411,7.25235953,190.58,190.55,8.43221984]
[1735702729617,7.25235953,190.58,190.57,2.6293]
[1735702730123,29.00943814,190.6,190.57,2.6293]
[1735702730526,31.63823814,190.6,190.57,2.6293]
[1735702731131,9.88115953,190.6,190.57,2.6293]
[1735702731428,7.25235953,190.6,190.57,2.6293]
[1735702731725,7.25235953,190.6,190.58,2.6291]
[1735702734320,9.88125953,190.6,190.56,2.6294]
[1735702734527,8.43221984,190.57,190.47,3.0307]
[1735702734728,2.94,190.59,190.47,3.0307]
[1735702734729,8.43221984,190.54,190.47,3.0307]
[1735702735529,2.6299,190.53,190.48,2.6304]
[1735702736617,2.6301,190.52,190.47,5.6613]
[1735702738327,2.6301,190.52,190.47,3.0307]
[1735702738527,2.6301,190.52,190.48,2.6305]
[1735702739824,2.6298,190.53,190.49,2.6302]
[1735702741725,7.25235953,190.55,190.5,8.43221984]
[1735702741929,7.25235953,190.55,190.52,8.43221984]
[1735702743029,58.01887631,190.57,190.53,2.6297]
[1735702743030,2.6294,190.57,190.53,2.6297]
[1735702744131,7.25235953,190.58,190.52,11.37221984]
[1735702744332,7.25235953,190.59,190.54,8.43221984]
[1735702744739,9.88135953,190.59,190.55,2.6294]
[1735702745334,7.25235953,190.59,190.54,8.43221984]
[1735702745535,31.63833814,190.6,190.56,2.6294]
[1735702746231,29.00943814,190.6,190.54,8.43221984]
[1735702746530,7.25235953,190.6,190.57,2.6292]
[1735702747336,67.78886351,190.61,190.57,2.6292]
[1735702747537,65.16016351,190.61,190.58,2.6291]
[1735702748037,65.16016351,190.61,190.58,11.06131984]
[1735702748238,29.00943814,190.61,190.59,2.629]
[1735702748437,29.00943814,190.63,190.59,2.629]
[1735702749433,31.63783814,190.63,190.59,2.629]
[1735702749639,2.6284,190.63,190.59,2.629]
[1735702751338,2.6284,190.63,190.57,2.94]
[1735702751339,2.6289,190.6,190.56,11.06151984]
[1735702751533,8.43221984,190.62,190.56,11.06151984]
[1735702751534,8.43221984,190.62,190.56,11.37221984]
[1735702752436,2.629,190.59,190.56,11.37221984]
[1735702753541,2.6289,190.6,190.56,14.00151984]
[1735702754641,2.6289,190.6,190.57,2.6292]
[1735702755544,11.06091984,190.62,190.57,2.6292]
[1735702755846,29.00943814,190.63,190.58,8.43221984]
[1735702756849,7.25235953,190.64,190.6,8.43221984]
[1735702757043,7.25235953,190.64,190.62,8.43221984]
[1735702758241,7.25235953,190.64,190.63,2.6284]
[1735702758550,7.25235953,190.68,190.62,8.43221984]
[1735702758741,7.25235953,190.68,190.65,8.43221984]
[1735702759047,7.25235953,190.68,190.66,2.92]
[1735702759948,8.43221984,190.68,190.63,2.92]
[1735702760149,8.43221984,190.66,190.62,2.92]
[1735702761551,2.6283,190.65,190.62,2.92]
[1735702762150,8.43221984,190.66,190.62,2.92]
[1735702762350,2.6283,190.64,190.62,2.92]
[1735702762552,2.6283,190.64,190.61,5.5487]
[1735702762951,2.6283,190.64,190.61,2.92]
[1735702768757,2.6283,190.64,190.61,5.5487]
[1735702770252,7.25235953,190.68,190.61,2.92]
[1735702770458,2.628,190.66,190.62,11.06081984]
[1735702771656,7.25235953,190.68,190.65,2.628]
[1735702772053,7.25235953,190.68,190.66,8.43221984]
[1735702772255,9.88015953,190.68,190.66,8.43221984]
[1735702772560,2.6278,190.68,190.66,11.35221984]
[1735702773358,2.6278,190.68,190.66,2.92]
[1735702773758,37.44165798,190.7,190.62,11.35221984]
[1735702773959,2.6281,190.65,190.63,2.92]
[1735702774761,15.68457937,190.7,190.63,2.92]
[1735702775059,2.6283,190.64,190.63,2.92]
[1735702781865,29.00943814,190.66,190.63,2.92]
[1735702782065,2.6282,190.65,190.63,2.92]
[1735702782266,29.00943814,190.66,190.63,2.92]
[1735702782868,7.25235953,190.65,190.63,2.92]
[1735702783467,2.6283,190.64,190.63,2.92]
[1735702784769,9.88055953,190.65,190.63,2.92]
[1735702784969,7.25235953,190.65,190.63,2.92]
[1735702785171,7.25235953,190.65,190.63,11.35221984]
[1735702786275,29.00943814,190.67,190.66,2.628]
[1735702787678,29.00943814,190.68,190.66,2.628]
[1735702787874,29.00943814,190.68,190.67,11.06011984]
[1735702788779,58.01887631,190.69,190.67,8.43221984]
[1735702788780,7.25235953,190.69,190.67,8.43221984]
[1735702789082,7.25235953,190.69,190.68,2.6277]
[1735702789677,7.25235953,190.69,190.67,8.43221984]
[1735702790077,44.58939487,190.7,190.67,8.43221984]
[1735702791279,41.96179487,190.69,190.67,8.43221984]
[1735702792176,7.25235953,190.68,190.67,8.43221984]
[1735702793272,7.25235953,190.68,190.66,2.628]
[1735702794472,34.70943534,190.69,190.66,2.628]
[1735702794473,41.96179487,190.69,190.66,2.628]
[1735702795371,7.25235953,190.68,190.66,2.628]
[1735702796479,41.96179487,190.69,190.66,2.628]
[1735702797482,31.63703814,190.7,190.66,2.628]
[1735702797983,31.63703814,190.7,190.67,8.43221984]
[1735702798383,7.25235953,190.69,190.67,8.43221984]
[1735702800284,41.96974298,190.69,190.67,8.43221984]
[1735702800881,44.59734298,190.69,190.67,8.43221984]
[1735702801777,2.6277,190.68,190.65,11.35221984]
[1735702802478,9.88005953,190.68,190.65,11.35221984]
[1735702803680,7.25235953,190.68,190.65,13.98021984]
[1735702804382,29.00943814,190.68,190.65,13.98021984]
[1735702805581,31.63713814,190.68,190.65,13.98021984]
[1735702808385,31.63713814,190.68,190.67,8.43221984]
[1735702809187,44.60188185,190.68,190.67,8.43221984]
[1735702809389,44.60188185,190.68,190.65,13.98021984]
[1735702809587,41.97418185,190.68,190.66,2.628]
[1735702809788,41.97418185,190.68,190.65,11.35221984]
[1735702809990,7.25235953,190.68,190.65,11.35221984]
[1735702810190,9.88015953,190.68,190.65,13.98031984]
[1735702813290,7.25235953,190.68,190.67,11.06011984]
[1735702814289,7.25235953,190.69,190.67,8.43221984]
[1735702814490,7.25235953,190.69,190.68,2.6277]
[1735702815096,7.25235953,190.7,190.68,2.6277]
[1735702815295,7.25235953,190.7,190.69,8.43221984]
[1735702816193,29.00943814,190.7,190.69,8.43221984]
[1735702816995,41.98103077,190.7,190.69,8.43221984]
[1735702817801,34.72867124,190.7,190.69,8.43221984]
[1735702818797,21.75707861,190.7,190.69,8.43221984]
[1735702819103,21.75707861,190.7,190.69,11.05981984]
[1735702821004,58.01887631,190.7,190.69,11.05981984]
[1735702821601,58.01887631,190.71,190.69,11.05981984]
[1735702822401,70.99046894,190.71,190.69,11.05981984]
[1735702824107,21.78051418,190.7,190.69,11.05981984]
[1735702824902,21.78051418,190.7,190.69,2.6276]
[1735702824903,29.04036028,190.7,190.69,2.6276]
[1735702827408,29.04036028,190.7,190.68,2.6277]
[1735702827605,29.04036028,190.7,190.65,8.43221984]
[1735702827812,29.04036028,190.7,190.64,2.92]
[1735702828212,7.2598461,190.68,190.65,2.628]
[1735702828410,7.2598461,190.68,190.64,11.35221984]
[1735702828613,7.2598461,190.68,190.66,8.43221984]
[1735702828812,7.2598461,190.68,190.65,11.06031984]
[1735702829414,42.01195291,190.68,190.65,11.06031984]
[1735702830108,42.01195291,190.68,190.65,2.6281]
[1735702830309,44.63975291,190.68,190.65,2.6281]
[1735702831210,42.01195291,190.67,190.65,2.6281]
[1735702831411,2.628,190.66,190.63,2.6284]
[1735702832920,2.6282,190.65,190.62,2.6285]
[1735702833621,7.2598461,190.66,190.62,2.6285]
[1735702833919,9.8878461,190.66,190.62,2.6285]
[1735702835314,9.8878461,190.66,190.62,11.06071984]
[1735702835520,2.628,190.66,190.62,11.06071984]
[1735702835915,2.628,190.66,190.62,2.6285]
[1735702837722,37.47258012,190.67,190.6,8.43221984]
[1735702837923,37.47258012,190.67,190.58,33.21654074]
[1735702838115,2.6282,190.65,190.61,2.6286]
[1735702838713,2.6282,190.65,190.52,1.5638]
[1735702838714,2.6287,190.61,190.57,2.6291]
[1735702839615,2.6287,190.61,190.57,11.06131984]
[1735702839815,15.69206594,190.63,190.57,2.6291]
[1735702840015,1.4765,190.62,190.55,11.06171984]
[1735702840919,21.78051418,190.61,190.55,11.06171984]
[1735702841122,7.2598461,190.6,190.55,11.06171984]
[1735702841422,9.8887461,190.6,190.55,11.06171984]
[1735702841623,9.8887461,190.6,190.55,8.43221984]
[1735702841825,9.8887461,190.6,190.56,2.6293]
[1735702842117,7.2598461,190.61,190.57,8.43221984]
[1735702842323,7.2598461,190.61,190.59,11.06111984]
[1735702842922,1.4765,190.62,190.59,8.43221984]
[1735702843118,1.4765,190.62,190.6,2.6288]
[1735702844020,1.4765,190.62,190.59,2.629]
[1735702849329,7.2598461,190.65,190.58,8.43221984]
[1735702849529,9.8880461,190.65,190.62,2.6285]
[1735702849727,7.2598461,190.65,190.62,11.06071984]
[1735702850324,29.04036028,190.67,190.62,8.43221984]
[1735702850531,29.04036028,190.67,190.63,2.6284]
[1735702850532,2.628,190.66,190.63,2.6284]
[1735702850927,29.04036028,190.67,190.63,2.6284]
[1735702851133,9.8878461,190.67,190.63,2.6284]
[1735702852837,7.2598461,190.67,190.63,2.6284]
[1735702853038,2.628,190.66,190.63,2.6284]
[1735702854438,2.6282,190.65,190.62,8.43221984]
[1735702857035,2.6283,190.64,190.62,8.43221984]
[1735702857242,8.43221984,190.66,190.56,1.5819]
[1735702857434,8.43221984,190.66,190.58,8.43221984]
[1735702857836,2.6285,190.63,190.59,2.6289]
[1735702861442,7.2598461,190.64,190.62,8.43221984]
[1735702862644,9.8880461,190.65,190.62,11.06071984]
[1735702863037,9.8880461,190.65,190.62,8.43221984]
[1735702864543,31.66856028,190.65,190.62,8.43221984]
[1735702868646,7.2598461,190.64,190.62,8.43221984]
[1735702870350,41.98458842,190.64,190.62,8.43221984]
[1735702871238,29.04036028,190.64,190.62,8.43221984]
[1735702871438,29.04036028,190.64,190.63,2.6284]
[1735702871641,29.04036028,190.64,190.62,8.43221984]
[1735702872442,7.2598461,190.64,190.62,11.06071984]
[1735702872649,7.2598461,190.64,190.62,8.43221984]
[1735702873149,7.2598461,190.64,190.61,2.6287]
[1735702876652,2.6283,190.64,190.61,2.6287]
[1735702877649,9.8881461,190.64,190.61,2.6287]
[1735702879651,31.66866028,190.64,190.61,2.6287]
[1735702882549,29.04036028,190.64,190.62,2.6285]
[1735702883354,42.00158828,190.64,190.62,2.6285]
[1735702885958,7.2598461,190.63,190.62,2.6285]
[1735702887050,34.74174218,190.64,190.62,2.6285]
[1735702887051,42.00158828,190.64,190.62,2.6285]
[1735702890156,42.00158828,190.64,190.58,2.92]
[1735702890357,42.00158828,190.64,190.59,5.04929215]
[1735702890757,42.00158828,190.64,190.58,2.92]
[1735702891258,2.6286,190.62,190.59,2.6288]
[1735702891461,2.6286,190.62,190.59,11.06101984]
[1735702892053,2.6286,190.62,190.59,2.6288]
[1735702892248,2.6286,190.62,190.59,11.06101984]
[1735702892961,2.6286,190.62,190.59,2.6288]
[1735702893159,2.6286,190.62,190.59,11.06101984]
[1735702893554,29.04036028,190.63,190.59,2.6288]
[1735702893763,2.6288,190.61,190.58,2.6291]
[1735702894761,7.2598461,190.59,190.58,2.6291]
[1735702897663,42.0101985,190.6,190.58,2.6291]
[1735702897955,29.04036028,190.6,190.58,2.6291]
[1735702898357,29.04036028,190.6,190.57,8.43221984]
[1735702899063,7.2598461,190.6,190.58,2.629]
[1735702899863,29.04036028,190.61,190.59,2.629]
[1735702900663,7.2598461,190.61,190.59,2.629]
[1735702901463,7.2598461,190.61,190.6,2.6288]
[1735702902262,7.2598461,190.61,190.57,8.43221984]
[1735702902464,7.2598461,190.61,190.38,87.91685315]
[1735702902465,8.43221984,190.59,190.38,87.91685315]
[1735702902661,8.43221984,190.57,190.48,8.43221984]
[1735702902858,2.6298,190.53,190.48,11.06261984]
[1735702905255,2.6298,190.53,190.49,2.6303]
[1735702906563,8.43221984,190.53,190.46,8.43221984]
[1735702906864,2.6301,190.51,190.46,8.43221984]
[1735702908573,2.6301,190.51,190.47,2.6306]
[1735702915870,11.06231984,190.51,190.47,2.6306]
[1735702917868,11.06231984,190.51,190.44,11.35221984]
[1735702918069,11.06231984,190.51,190.48,2.6305]
[1735702919370,2.6301,190.51,190.48,2.6305]
[1735702924280,2.63,190.52,190.48,2.6305]
[1735702925272,11.06191984,190.54,190.5,2.6301]
[1735702926580,2.6298,190.53,190.5,2.6301]
[1735702926787,2.6298,190.53,190.49,2.6303]
[1735702930180,8.43221984,190.54,190.49,2.6303]
[1735702930370,2.6299,190.52,190.49,2.6303]
[1735702930879,2.6299,190.52,190.47,8.43221984]
[1735702931080,2.6299,190.52,190.48,2.6305]
[1735702932673,2.6301,190.51,190.48,2.6305]
[1735702934481,2.6298,190.53,190.49,2.6302]
[1735702934679,2.6298,190.53,190.44,2.92]
[1735702934982,7.2598461,190.54,190.47,8.43221984]
[1735702935179,29.04036028,190.54,190.47,8.43221984]
[1735702935380,29.04036028,190.54,190.44,2.92]
[1735702935582,29.04036028,190.54,190.47,8.43221984]
[1735702935778,2.63,190.52,190.48,2.6304]
[1735702935983,2.63,190.52,190.47,8.43221984]
[1735702936984,2.63,190.52,190.49,2.6303]
[1735702937185,31.67036028,190.52,190.49,2.6303]
[1735702938386,7.2598461,190.51,190.49,2.6303]
[1735702941280,7.2598461,190.51,190.47,8.43221984]
[1735702941480,7.2598461,190.51,190.5,2.6302]
[1735702943187,7.2598461,190.52,190.5,2.6302]
[1735702944087,7.2598461,190.53,190.5,2.6302]
[1735702944389,2.6302,190.5,190.47,2.6306]
[1735702945380,9.8900461,190.5,190.47,2.6306]
[1735702946090,31.67056028,190.5,190.47,2.6306]
[1735702950589,7.2598461,190.49,190.47,2.6306]
[1735702951492,31.67056028,190.5,190.47,2.6306]
[1735702959395,29.04036028,190.5,190.46,8.43221984]
[1735702960301,29.04036028,190.51,190.48,2.6304]
[1735702962198,31.67046028,190.51,190.48,2.6304]
[1735702967105,7.2598461,190.5,190.48,2.6304]
[1735702968909,9.8900461,190.5,190.47,2.6306]
[1735702969308,9.8900461,190.5,190.46,8.43221984]
[1735702969509,9.8900461,190.5,190.46,2.6307]
[1735702969906,7.2598461,190.5,190.48,2.6305]
[1735702971005,42.00211416,190.5,190.48,2.6305]
[1735702971608,44.63231416,190.5,190.47,2.6306]
[1735702972110,9.8900461,190.5,190.47,2.6306]
[1735702979410,31.67056028,190.5,190.47,2.6306]
[1735702982715,29.04036028,190.5,190.43,3.0664]
[1735702982919,29.04036028,190.5,190.44,7.66093265]
[1735702982920,2.6306,190.48,190.44,7.66093265]
[1735702983313,2.6306,190.48,190.44,2.6309]
[1735702983914,9.8904461,190.48,190.44,2.6309]
[1735702985123,7.2598461,190.47,190.45,2.6309]
[1735702986017,31.67096028,190.48,190.45,2.6309]
[1735702986912,29.04036028,190.48,190.45,8.43221984]
[1735702987116,16.25436028,190.48,190.47,8.43221984]
[1735702987316,87.02831446,190.51,190.5,2.6302]
[1735702987525,87.02831446,190.51,190.5,20.30810237]
[1735702988519,12.96326033,190.58,190.56,2.6292]
[1735702989325,1.5682,190.6,190.56,2.6292]
[1735702990424,4.197,190.6,190.56,2.6292]
[1735703004639,3.1156,190.62,190.59,2.629]
[1735703004837,1.5202,190.62,190.59,2.629]
[1735703007036,4.1487,190.62,190.58,11.06131984]
[1735703010947,2.6287,190.61,190.58,11.06131984]
[1735703014250,2.6287,190.61,190.58,2.6291]
[1735703015251,1.5202,190.62,190.57,8.43221984]
[1735703015451,2.6287,190.61,190.58,2.6291]
[1735703028866,2.6283,190.64,190.59,2.92]
[1735703029066,1.5125,190.66,190.59,11.35221984]
[1735703029468,2.6282,190.65,190.61,2.6285]
[1735703030168,2.6282,190.65,190.61,11.06071984]
[1735703030866,2.6282,190.65,190.61,8.43221984]
[1735703031066,2.6282,190.65,190.62,2.6285]
[1735703031969,2.6279,190.67,190.64,2.6282]
[1735703032163,1.6126,190.68,190.65,8.43221984]
[1735703032363,42.373216,190.69,190.65,8.43221984]
[1735703033169,45.000916,190.69,190.65,2.6281]
[1735703033363,42.373216,190.69,190.64,2.92]
[1735703033962,2.628,190.67,190.64,2.92]
[1735703035170,2.628,190.67,190.64,5.5483]
[1735703038271,42.373216,190.69,190.64,2.92]
[1735703038474,42.373216,190.69,190.67,2.6278]
[1735703043676,2.6275,190.7,190.67,2.6278]
[1735703044773,2.6273,190.71,190.68,2.6277]
[1735703045776,2.6273,190.71,190.67,2.6278]
[1735703047679,8.43221984,190.7,190.66,2.6279]